bitfinex-derivatives/quotes_BTCF0:USTF0_20210108
["timestamp","ask_amount","ask_price","bid_price","bid_amount"]
[1610073032642,0.13243,37718.0,37709.0,0.01483161]
[1610073032842,0.13243,37718.0,37695.0,0.12981]
[1610073032843,0.13243,37718.0,37697.0,0.01483167]
[1610073033242,0.13243,37718.0,37710.0,0.01483171]
[1610073033445,0.13243,37718.0,37698.0,0.01483057]
[1610073033643,0.13632608,37707.0,37702.0,0.13632608]
[1610073034045,0.10519,37710.0,37702.0,0.13632608]
[1610073034244,0.10519,37710.0,37709.0,0.13632608]
[1610073034443,0.10519,37710.0,37703.0,0.01483199]
[1610073035552,0.13632608,37704.0,37703.0,0.15115807]
[1610073035745,0.13632608,37704.0,37684.0,0.23241613]
[1610073036145,0.13632608,37704.0,37685.0,0.01483345]
[1610073036945,0.13632608,37704.0,37677.0,0.01483685]
[1610073037147,0.13632608,37704.0,37686.0,0.01483541]
[1610073037546,0.24151608,37710.0,37703.0,0.13632608]
[1610073037947,0.10519,37710.0,37704.0,0.01483388]
[1610073038346,0.13243,37718.0,37704.0,0.01483388]
[1610073038546,0.5759,37728.0,37704.0,0.01483388]
[1610073038746,0.5759,37728.0,37705.0,0.01483113]
[1610073039347,0.5759,37728.0,37704.0,0.0148299]
[1610073039549,0.5759,37728.0,37703.0,0.22016608]
[1610073039550,0.70376,37728.0,37706.0,0.01482946]
[1610073039950,0.70376,37728.0,37705.0,0.01482957]
[1610073040149,0.70376,37728.0,37707.0,0.01483004]
[1610073040350,0.70376,37728.0,37706.0,0.01483143]
[1610073040748,0.70376,37728.0,37708.0,0.01483135]
[1610073040948,0.70376,37728.0,37707.0,0.01483225]
[1610073041148,0.70376,37728.0,37709.0,0.01483225]
[1610073041548,0.70376,37728.0,37708.0,0.01483203]
[1610073041750,0.70376,37728.0,37695.0,0.13028]
[1610073041751,0.13632608,37710.0,37699.0,0.13632608]
[1610073041949,0.13632608,37710.0,37709.0,0.0148315]
[1610073042349,0.13632608,37710.0,37700.0,0.01483105]
[1610073042548,0.13632608,37710.0,37709.0,0.01483105]
[1610073042749,0.13632608,37710.0,37701.0,0.01483103]
[1610073043149,0.13632608,37710.0,37700.0,0.01483165]
[1610073043349,0.13632608,37710.0,37702.0,0.01483227]
[1610073043549,0.13632608,37710.0,37701.0,0.01483193]
[1610073043749,0.13632608,37703.0,37701.0,0.01483193]
[1610073043949,0.13632608,37703.0,37696.0,0.01483177]
[1610073044149,0.13632608,37703.0,37702.0,0.0148316]
[1610073044353,0.13132,37717.0,37702.0,0.00026016]
[1610073044551,0.13132,37717.0,37697.0,0.01483175]
[1610073044749,0.13132,37717.0,37703.0,0.00026016]
[1610073044949,0.13132,37717.0,37698.0,0.01483145]
[1610073045150,0.13132,37717.0,37704.0,0.00026014]
[1610073045550,0.13132,37717.0,37699.0,0.01483125]
[1610073045749,0.26764608,37717.0,37705.0,0.00026012]
[1610073046150,0.26764608,37717.0,37700.0,0.01483138]
[1610073046351,0.26764608,37717.0,37706.0,0.00026014]
[1610073046550,0.26764608,37717.0,37674.0,0.10671007]
[1610073046551,0.26764608,37717.0,37701.0,0.01483002]
[1610073046750,0.26764608,37717.0,37674.0,0.10671007]
[1610073046951,0.26764608,37717.0,37707.0,0.00026039]
[1610073047150,0.26764608,37717.0,37674.0,0.10671007]
[1610073047151,0.26764608,37717.0,37687.0,0.01497114]
[1610073047350,0.26764608,37717.0,37708.0,0.00026044]
[1610073047751,0.25489608,37709.0,37695.0,0.13632608]
[1610073047950,0.25489608,37709.0,37702.0,0.01471273]
[1610073048152,0.25489608,37709.0,37696.0,0.01497397]
[1610073048552,0.25489608,37709.0,37703.0,0.01497332]
[1610073048752,0.25489608,37709.0,37697.0,0.01497228]
[1610073048952,0.25489608,37709.0,37704.0,0.01497135]
[1610073049352,0.25489608,37709.0,37705.0,0.01497085]
[1610073049552,0.25489608,37709.0,37674.0,0.10671007]
[1610073049752,0.25489608,37709.0,37708.0,0.13632608]
[1610073050153,0.25489608,37709.0,37708.0,0.15129597]
[1610073050753,0.11857,37709.0,37708.0,0.15129597]
[1610073050953,0.13132,37717.0,37708.0,0.15129597]
[1610073051154,0.70376,37728.0,37708.0,0.01496989]
[1610073051555,0.0789,37727.0,37709.0,0.01496784]
[1610073051753,0.13632608,37710.0,37699.0,0.13632608]
[1610073051953,0.27379608,37710.0,37699.0,0.13632608]
[1610073052355,0.27379608,37710.0,37700.0,0.01497225]
[1610073053555,0.27379608,37710.0,37679.0,0.01497342]
[1610073053754,0.13747,37710.0,37694.0,0.13632608]
[1610073053955,0.13747,37710.0,37701.0,0.01497364]
[1610073054154,0.13747,37710.0,37695.0,0.01497207]
[1610073054355,0.13747,37710.0,37702.0,0.01497267]
[1610073054757,0.13747,37710.0,37696.0,0.01497259]
[1610073054956,0.13747,37710.0,37703.0,0.01497276]
[1610073055155,0.13747,37710.0,37678.0,0.09891]
[1610073055354,0.13747,37710.0,37673.0,0.10706176]
[1610073055556,0.13747,37710.0,37704.0,0.01497304]
[1610073055756,0.13747,37710.0,37673.0,0.12203518]
[1610073055757,0.13632608,37705.0,37673.0,0.12203518]
[1610073055956,0.13632608,37705.0,37673.0,0.10706176]
[1610073056356,0.13632608,37705.0,37674.0,0.01497559]
[1610073056557,0.13632608,37705.0,37673.0,0.1220356]
[1610073056759,0.13632608,37705.0,37675.0,0.01497388]
[1610073056957,0.13632608,37705.0,37673.0,0.10706176]
[1610073057157,0.13632608,37705.0,37674.0,0.01497351]
[1610073057359,0.13632608,37705.0,37673.0,0.12203595]
[1610073057557,0.13632608,37705.0,37675.0,0.0149745]
[1610073057758,0.13632608,37689.0,37687.0,0.13632608]
[1610073058159,0.10389,37690.0,37688.0,0.01497226]
[1610073059159,0.13747,37710.0,37688.0,0.01497226]
[1610073059359,0.70376,37728.0,37688.0,0.01497226]
[1610073059758,0.70376,37728.0,37698.0,0.13632608]
[1610073060260,0.70376,37728.0,37699.0,0.0149712]
[1610073061062,0.70376,37728.0,37700.0,0.01496869]
[1610073061662,0.13632608,37725.0,37717.0,0.13632608]
[1610073062264,0.13632608,37725.0,37718.0,0.01496587]
[1610073063264,0.13632608,37725.0,37712.0,0.01496591]
[1610073063465,0.13632608,37725.0,37719.0,0.01496515]
[1610073063665,0.13632608,37720.0,37719.0,0.01496515]
[1610073063865,0.13632608,37720.0,37713.0,0.01496501]
[1610073064065,0.12786,37728.0,37719.0,0.01496478]
[1610073064268,0.5807,37756.0,37751.0,0.16221472]
[1610073064465,0.5807,37756.0,37714.0,0.01496431]
[1610073064665,0.5807,37756.0,37720.0,0.01496443]
[1610073064866,0.5807,37756.0,37715.0,0.01496414]
[1610073065066,0.67774,37756.0,37721.0,0.01496401]
[1610073065467,0.67774,37756.0,37712.0,0.01496388]
[1610073065667,0.67774,37756.0,37711.0,0.11948]
[1610073065668,0.13632608,37731.0,37730.0,0.13632608]
[1610073066068,0.13632608,37731.0,37713.0,0.01496252]
[1610073066368,0.13632608,37731.0,37730.0,0.01496267]
[1610073066568,0.13632608,37731.0,37714.0,0.01496299]
[1610073066767,0.13632608,37731.0,37730.0,0.01496301]
[1610073066968,0.13632608,37731.0,37715.0,0.01496301]
[1610073067168,0.13632608,37731.0,37730.0,0.01470237]
[1610073067368,0.13632608,37731.0,37730.0,0.01496263]
[1610073067571,0.13632608,37731.0,37712.0,0.01496332]
[1610073067769,0.13632608,37719.0,37714.0,0.13632608]
[1610073068368,0.13632608,37719.0,37715.0,0.0149636]
[1610073068768,0.13632608,37719.0,37702.0,0.03949616]
[1610073068968,0.24820608,37719.0,37694.0,0.10703759]
[1610073069170,0.24820608,37719.0,37703.0,0.01496862]
[1610073069371,0.24820608,37719.0,37698.0,0.01496847]
[1610073069771,0.11188,37719.0,37704.0,0.01497055]
[1610073069977,0.11188,37719.0,37699.0,0.01497191]
[1610073070172,0.11188,37719.0,37705.0,0.01497435]
[1610073070572,0.11188,37719.0,37700.0,0.014975]
[1610073070773,0.11188,37719.0,37706.0,0.01497508]
[1610073070972,0.11188,37719.0,37701.0,0.01497501]
[1610073071172,0.0806,37718.0,37701.0,0.01497501]
[1610073071372,3.3483,37715.0,37707.0,0.01496972]
[1610073071572,3.3483,37715.0,37702.0,0.01496926]
[1610073071775,0.13632608,37703.0,37687.0,0.13632608]
[1610073071973,0.22441608,37703.0,37687.0,0.13632608]
[1610073072374,0.22441608,37703.0,37688.0,0.01496804]
[1610073072775,0.22441608,37703.0,37687.0,0.13632608]
[1610073072776,0.22441608,37703.0,37677.0,0.11812]
[1610073072974,0.22441608,37703.0,37689.0,0.01496752]
[1610073073176,0.22441608,37703.0,37678.0,0.01496854]
[1610073073375,0.22441608,37703.0,37690.0,0.01496932]
[1610073073774,0.13632608,37691.0,37679.0,0.01496892]
[1610073073974,0.13632608,37691.0,37677.0,0.11812]
[1610073074175,0.13632608,37691.0,37680.0,0.01497019]
[1610073074576,0.13632608,37691.0,37678.0,0.01496989]
[1610073074775,0.13632608,37691.0,37681.0,0.01497005]
[1610073074975,0.13632608,37691.0,37679.0,0.01497007]
[1610073075378,0.13632608,37691.0,37682.0,0.01496966]
[1610073075576,0.13632608,37691.0,37680.0,0.01497016]
[1610073075778,0.13632608,37681.0,37674.0,0.13632608]
[1610073076379,0.13632608,37681.0,37675.0,0.01497168]
[1610073077779,0.13044,37694.0,37678.0,0.13632608]
[1610073078180,0.13044,37694.0,37679.0,0.01497045]
[1610073079084,0.08809,37703.0,37679.0,0.01497045]
[1610073079284,3.3483,37715.0,37679.0,0.01497045]
[1610073079684,0.13632608,37681.0,37679.0,0.01497045]
[1610073080686,0.13632608,37681.0,37669.0,0.13669]
[1610073080887,0.13632608,37681.0,37680.0,0.01497171]
[1610073081086,0.72942608,37681.0,37680.0,0.01497171]
[1610073081487,2.22942608,37681.0,37680.0,0.01239892]
[1610073082090,2.22942608,37681.0,37666.0,0.0918]
[1610073082091,2.22942608,37681.0,37667.0,0.01239979]
[1610073082289,2.22942608,37681.0,37648.0,0.10048045]
[1610073082490,4.2184,37677.0,37668.0,0.01240281]
[1610073082689,1.5,37676.0,37668.0,0.01240281]
[1610073082890,4.2184,37677.0,37649.0,0.01240495]
[1610073083091,4.2184,37677.0,37669.0,0.0124064]
[1610073083291,4.2184,37677.0,37650.0,0.01240652]
[1610073083692,0.0797,37676.0,37670.0,0.0124062]
[1610073083891,0.0797,37676.0,37651.0,0.01240561]
[1610073084092,0.0797,37676.0,37671.0,0.01240608]
[1610073084291,0.0797,37676.0,37626.0,0.1005213]
[1610073084491,0.0797,37676.0,37625.0,0.10052655]
[1610073084691,0.0797,37676.0,37627.0,0.01240666]
[1610073084892,0.0797,37676.0,37622.0,0.11294326]
[1610073085292,0.0797,37676.0,37628.0,0.01240762]
[1610073085492,0.0797,37676.0,37623.0,0.13669731]
[1610073085693,0.0797,37676.0,37629.0,0.01240708]
[1610073085892,0.0797,37676.0,37636.0,0.13632608]
[1610073086292,0.0797,37676.0,37637.0,0.01240813]
[1610073086893,0.0797,37676.0,37624.0,0.0124083]
[1610073087094,0.0797,37676.0,37638.0,0.01240861]
[1610073087293,0.0797,37676.0,37625.0,0.0124083]
[1610073087695,0.0797,37676.0,37624.0,0.01240816]
[1610073087894,0.13632608,37626.0,37625.0,0.13632608]
[1610073088295,0.09663,37637.0,37625.0,0.14873396]
[1610073088694,0.09663,37637.0,37626.0,0.01240917]
[1610073089495,0.09663,37637.0,37612.0,0.0124099]
[1610073089696,0.09663,37637.0,37627.0,0.01241103]
[1610073089896,0.13632608,37628.0,37627.0,0.01241103]
[1610073090095,0.24327608,37628.0,37607.0,0.01241254]
[1610073090296,0.24327608,37628.0,37627.0,0.01241325]
[1610073090696,0.24327608,37628.0,37608.0,0.01241261]
[1610073090897,0.24327608,37628.0,37604.0,0.13632608]
[1610073091095,0.24327608,37628.0,37609.0,0.01241275]
[1610073091496,0.24327608,37628.0,37609.0,0.11941]
[1610073091696,0.13632608,37628.0,37610.0,0.01241226]
[1610073091896,0.13632608,37624.0,37622.0,0.13632608]
[1610073092496,0.13632608,37624.0,37623.0,0.01241166]
[1610073092896,0.13632608,37624.0,37609.0,0.11941]
[1610073093098,0.13632608,37624.0,37623.0,0.01241121]
[1610073093297,0.13632608,37624.0,37610.0,0.0124115]
[1610073093499,0.13632608,37624.0,37623.0,0.0124118]
[1610073093799,0.13632608,37624.0,37611.0,0.01241263]
[1610073093998,0.13632608,37624.0,37623.0,0.01241277]
[1610073094400,0.13632608,37624.0,37605.0,0.01241365]
[1610073094600,0.13632608,37624.0,37623.0,0.01241354]
[1610073094800,0.13632608,37624.0,37606.0,0.01241367]
[1610073095200,0.13632608,37624.0,37605.0,0.01241367]
[1610073095401,0.13632608,37624.0,37607.0,0.01241348]
[1610073095602,0.13632608,37624.0,37607.0,0.000256]
[1610073095801,0.13632608,37612.0,37608.0,0.13632608]
[1610073096003,0.13632608,37612.0,37608.0,0.13658206]
[1610073096202,0.09887,37626.0,37609.0,0.01241238]
[1610073096603,0.0074104,37680.0,37623.0,0.13632608]
[1610073096803,0.0074104,37680.0,37621.0,0.1048]
[1610073097004,3.0915,37681.0,37624.0,0.01240985]
[1610073097203,0.0991,37681.0,37624.0,0.01240985]
[1610073097404,0.0991,37681.0,37622.0,0.01240952]
[1610073097607,0.0991,37681.0,37625.0,0.01240812]
[1610073097804,0.2991,37680.0,37650.0,0.13632608]
[1610073098205,0.0991,37681.0,37651.0,0.01240568]
[1610073098605,0.2827,37697.0,37651.0,0.01240568]
[1610073099905,0.2827,37697.0,37665.0,0.13632608]
[1610073100105,0.2827,37697.0,37653.0,0.0973]
[1610073100305,0.3694,37697.0,37653.0,0.0973]
[1610073100504,0.3694,37697.0,37666.0,0.01239901]
[1610073100704,0.4971,37695.0,37654.0,0.01239986]
[1610073100904,0.4971,37695.0,37667.0,0.01240054]
[1610073101305,0.4971,37695.0,37655.0,0.01240147]
[1610073101505,0.4971,37695.0,37668.0,0.01240104]
[1610073101906,0.13632608,37669.0,37660.0,0.13632608]
[1610073102308,0.25110608,37669.0,37661.0,0.01240106]
[1610073102907,0.25110608,37669.0,37645.0,0.01240208]
[1610073103108,0.25110608,37669.0,37662.0,0.01240193]
[1610073103408,0.25110608,37669.0,37646.0,0.01240196]
[1610073103609,0.25110608,37669.0,37663.0,0.01214603]
[1610073103812,0.13632608,37664.0,37663.0,0.01240178]
[1610073104011,0.13632608,37664.0,37658.0,0.13632608]
[1610073104209,0.13632608,37664.0,37663.0,0.01240155]
[1610073104512,0.13632608,37664.0,37659.0,0.01240138]
[1610073104710,0.13632608,37664.0,37663.0,0.01240057]
[1610073105110,0.13632608,37664.0,37660.0,0.0123999]
[1610073105311,0.13632608,37664.0,37663.0,0.01240046]
[1610073105510,0.13632608,37664.0,37661.0,0.01240078]
[1610073105910,0.13632608,37664.0,37659.0,0.01240066]
[1610073106112,0.13632608,37664.0,37662.0,0.01240129]
[1610073106313,0.13632608,37664.0,37660.0,0.01239985]
[1610073106513,0.11478,37669.0,37660.0,0.01239985]
[1610073106714,0.11478,37669.0,37663.0,0.01239968]
[1610073106912,0.11478,37669.0,37661.0,0.01239911]
[1610073107113,0.11478,37669.0,37664.0,0.01239856]
[1610073107312,0.4971,37695.0,37664.0,0.01239856]
[1610073107514,0.4971,37695.0,37659.0,0.01239885]
[1610073107713,0.4971,37695.0,37665.0,0.01239855]
[1610073107916,0.4971,37695.0,37673.0,0.13632608]
[1610073108315,0.4971,37695.0,37674.0,0.0123979]
[1610073108818,0.3694,37697.0,37674.0,0.0123979]
[1610073109818,0.13632608,37676.0,37674.0,0.0123979]
[1610073112325,0.13632608,37676.0,37661.0,0.01239879]
[1610073112527,0.13632608,37676.0,37675.0,0.01240073]
[1610073112926,0.13632608,37676.0,37662.0,0.01240203]
[1610073113126,0.13632608,37676.0,37675.0,0.0124021]
[1610073113326,0.13632608,37676.0,37663.0,0.01240259]
[1610073113727,0.13632608,37676.0,37655.0,0.09447]
[1610073113728,0.13632608,37676.0,37675.0,0.01240191]
[1610073113929,0.13632608,37676.0,37664.0,0.01240175]
[1610073114129,0.13632608,37676.0,37675.0,0.01240105]
[1610073114530,0.13632608,37676.0,37665.0,0.0124008]
[1610073114729,0.13632608,37676.0,37675.0,0.01240033]
[1610073114930,0.13632608,37676.0,37675.0,0.01214461]
[1610073115132,0.13632608,37676.0,37666.0,0.01240029]
[1610073115333,0.13632608,37676.0,37675.0,0.01240027]
[1610073115531,0.09998,37681.0,37667.0,0.01240047]
[1610073115733,0.3694,37697.0,37653.0,0.10629]
[1610073115734,0.3694,37697.0,37675.0,0.01240085]
[1610073115933,0.3694,37697.0,37687.0,0.13632608]
[1610073116333,0.3694,37697.0,37688.0,0.01239906]
[1610073117133,0.0867,37697.0,37688.0,0.01239906]
[1610073117333,0.2868,37728.0,37688.0,0.01239906]
[1610073117732,0.2868,37728.0,37688.0,0.13731906]
[1610073117932,0.2868,37728.0,37703.0,0.13632608]
[1610073118434,0.2868,37728.0,37704.0,0.01239324]
[1610073119937,0.13632608,37705.0,37704.0,0.01239324]
[1610073120137,0.24100608,37705.0,37704.0,0.01239324]
[1610073122737,0.24100608,37705.0,37687.0,0.10041587]
[1610073123937,0.13632608,37688.0,37687.0,0.10041587]
[1610073124939,0.13632608,37688.0,37644.0,4.1699]
[1610073125541,3.7629,37701.0,37644.0,4.1699]
[1610073125943,3.7629,37701.0,37694.0,0.13632608]
[1610073126141,0.2828,37704.0,37694.0,0.13632608]
[1610073127344,0.2828,37704.0,37677.0,0.09646]
[1610073127944,0.2828,37704.0,37686.0,0.13632608]
[1610073128144,0.2828,37704.0,37677.0,0.09646]
[1610073131248,0.2828,37704.0,37650.0,3.6084]
[1610073132049,0.2828,37704.0,37692.0,0.13632608]
[1610073133348,0.2828,37704.0,37676.0,0.08339]
[1610073133950,0.13632608,37690.0,37689.0,0.13632608]
[1610073134552,0.2828,37704.0,37689.0,0.14871936]
[1610073135151,0.2828,37704.0,37690.0,0.01239532]
[1610073135952,0.2828,37704.0,37700.0,0.13632608]
[1610073136553,0.2828,37704.0,37701.0,0.01239251]
[1610073137955,0.13632608,37702.0,37701.0,0.01239251]
[1610073138455,0.2828,37704.0,37701.0,0.01239251]
[1610073140059,0.13632608,37702.0,37701.0,0.01239251]
[1610073140961,0.13632608,37702.0,37681.0,0.01239429]
[1610073141361,0.13632608,37702.0,37701.0,0.01239377]
[1610073141562,0.13632608,37702.0,37682.0,0.01239406]
[1610073141762,0.13632608,37702.0,37701.0,0.01239399]
[1610073142161,0.13632608,37702.0,37692.0,0.13632608]
[1610073142364,0.13632608,37702.0,37701.0,0.01239383]
[1610073142564,0.13632608,37702.0,37659.0,0.1054]
[1610073142962,1.63632608,37702.0,37701.0,0.00889432]
[1610073143166,1.63632608,37702.0,37660.0,0.00889482]
[1610073143364,1.63632608,37702.0,37701.0,0.00889593]
[1610073143763,1.63632608,37702.0,37651.0,0.09049725]
[1610073143764,1.63632608,37702.0,37661.0,0.00889641]
[1610073143964,4.1731,37703.0,37701.0,0.00889723]
[1610073144166,4.1731,37703.0,37672.0,0.13632608]
[1610073144364,0.2828,37704.0,37672.0,0.13632608]
[1610073144564,0.2828,37704.0,37702.0,0.00889655]
[1610073144764,0.2828,37704.0,37673.0,0.00889628]
[1610073144965,0.2828,37704.0,37703.0,0.00889589]
[1610073145366,0.2828,37704.0,37674.0,0.00889637]
[1610073145566,0.2828,37704.0,37703.0,0.00889623]
[1610073145766,0.2828,37704.0,37675.0,0.00889643]
[1610073145966,0.2828,37704.0,37685.0,0.13632608]
[1610073146366,0.2828,37704.0,37686.0,0.00889611]
[1610073146966,4.0841,37699.0,37686.0,0.00889611]
[1610073147168,4.0841,37699.0,37649.0,3.0904]
[1610073147368,4.0841,37699.0,37687.0,0.00889675]
[1610073147769,4.0841,37699.0,37650.0,0.09941409]
[1610073147968,4.0841,37699.0,37688.0,0.00889686]
[1610073148168,4.0841,37699.0,37664.0,0.13632608]
[1610073148568,4.0841,37699.0,37665.0,0.00889726]
[1610073149970,0.13632608,37683.0,37675.0,0.13632608]
[1610073150170,0.27163608,37683.0,37675.0,0.13632608]
[1610073150371,0.27163608,37683.0,37676.0,0.00889589]
[1610073151773,0.27163608,37683.0,37653.0,0.10732]
[1610073151973,3.81191,37683.0,37661.0,0.13632608]
[1610073152171,3.81191,37683.0,37654.0,0.0088957]
[1610073152573,3.81191,37683.0,37646.0,0.09941063]
[1610073152773,3.81191,37683.0,37618.0,3.19745674]
[1610073152774,3.81191,37683.0,37655.0,0.00889845]
[1610073153176,3.81191,37683.0,37647.0,0.00889949]
[1610073153374,3.81191,37683.0,37656.0,0.00890004]
[1610073153575,3.81191,37683.0,37648.0,0.00890033]
[1610073153975,3.81191,37683.0,37657.0,0.00890023]
[1610073154175,3.81191,37683.0,37649.0,0.00890027]
[1610073154375,3.81191,37683.0,37658.0,0.00890103]
[1610073154575,3.81191,37683.0,37650.0,0.00890312]
[1610073154977,3.81191,37683.0,37637.0,0.00890277]
[1610073155175,3.81191,37683.0,37636.0,0.1153]
[1610073155176,3.81191,37683.0,37651.0,0.00890277]
[1610073155375,3.81191,37683.0,37651.0,0.00865509]
[1610073155578,3.81191,37683.0,37638.0,0.00890252]
[1610073155775,3.81191,37683.0,37652.0,0.00890265]
[1610073155977,0.13632608,37656.0,37652.0,0.00865497]
[1610073156176,0.13632608,37656.0,37646.0,0.13632608]
[1610073156376,0.0787,37655.0,37653.0,0.00024768]
[1610073156577,0.13632608,37656.0,37647.0,0.00024768]
[1610073156776,0.23300608,37656.0,37654.0,0.00024768]
[1610073157177,0.23300608,37656.0,37648.0,0.0002477]
[1610073157379,0.23300608,37656.0,37655.0,0.0002477]
[1610073157578,0.23300608,37656.0,37649.0,0.0002477]
[1610073157980,0.09668,37656.0,37655.0,0.00024773]
[1610073158180,0.09668,37656.0,37650.0,0.00024775]
[1610073158379,0.09668,37656.0,37639.0,0.00865755]
[1610073158580,4.2703,37649.0,37639.0,0.00865755]
[1610073158779,4.2703,37649.0,37632.0,0.00865907]
[1610073158980,4.2703,37649.0,37640.0,0.00890669]
[1610073159180,4.2703,37649.0,37633.0,0.00890675]
[1610073159380,0.09668,37656.0,37633.0,0.00890675]
[1610073159581,0.09668,37656.0,37641.0,0.00890667]
[1610073159781,4.1098,37649.0,37634.0,0.00890709]
[1610073159980,4.1098,37649.0,37642.0,0.00890709]
[1610073160381,5.6098,37649.0,37607.0,0.09060633]
[1610073160581,5.6098,37649.0,37643.0,0.00890837]
[1610073160783,5.6098,37649.0,37608.0,0.00890865]
[1610073160981,1.5,37649.0,37608.0,0.00890865]
[1610073161181,1.5,37649.0,37603.0,0.0906224]
[1610073161382,0.09668,37656.0,34644.0,0.01957831]
[1610073161383,3.3344,37620.0,37609.0,0.00891037]
[1610073161583,3.3344,37620.0,37599.0,0.09064008]
[1610073161584,3.42341,37620.0,37604.0,0.00891117]
[1610073161985,3.42341,37620.0,37610.0,0.00891147]
[1610073162184,1.5,37619.0,37605.0,0.00891181]
[1610073162384,1.5,37619.0,37611.0,0.00891252]
[1610073162585,3.42341,37620.0,37611.0,0.00891252]
[1610073162785,3.42341,37620.0,37606.0,0.00891298]
[1610073162984,3.42341,37620.0,37612.0,0.00891347]
[1610073163186,3.42341,37620.0,37607.0,0.00891344]
[1610073163584,3.42341,37620.0,37613.0,0.00891335]
[1610073163784,3.42341,37620.0,37608.0,0.00866558]
[1610073163984,3.42341,37620.0,37614.0,0.00891373]
[1610073164385,3.42341,37620.0,37609.0,0.00891408]
[1610073164585,3.42341,37620.0,37615.0,0.00891373]
[1610073164786,0.08901,37620.0,37610.0,0.00891366]
[1610073165187,0.08901,37620.0,37616.0,0.0089139]
[1610073165389,0.08901,37620.0,37611.0,0.00891306]
[1610073165587,0.09326,37630.0,37617.0,0.00891245]
[1610073165989,0.09326,37630.0,37617.0,0.00866449]
[1610073166187,0.09326,37630.0,37623.0,0.13632608]
[1610073166788,0.2933,37646.0,37624.0,0.00890936]
[1610073166988,0.09668,37656.0,37624.0,0.00890936]
[1610073167388,0.2782,37665.0,37624.0,0.00890936]
[1610073168390,1.5,37664.0,37624.0,0.00890936]
[1610073168791,0.3634,37665.0,37624.0,0.00890936]
[1610073169990,1.5,37664.0,37624.0,0.00890936]
[1610073170192,0.13632608,37625.0,37624.0,0.00890936]
[1610073170390,0.22086608,37625.0,37624.0,0.00890936]
[1610073170791,0.22086608,37625.0,34644.0,0.01957831]
[1610073170792,0.22086608,37625.0,37598.0,0.09062889]
[1610073170993,0.22086608,37625.0,37624.0,0.00891015]
[1610073171195,0.22086608,37625.0,37589.0,0.00891123]
[1610073171493,0.22086608,37625.0,37624.0,0.00891163]
[1610073171693,2.19516608,37625.0,37624.0,0.00891163]
[1610073171894,2.19516608,37625.0,37590.0,0.00891208]
[1610073172094,2.19516608,37625.0,37587.0,0.09064756]
[1610073172095,1.58454,37625.0,37624.0,0.00891386]
[1610073172293,1.58454,37625.0,37594.0,0.13632608]
[1610073172494,5.15524,37625.0,37594.0,0.13632608]
[1610073172694,5.15524,37625.0,37624.0,0.00891467]
[1610073172895,5.15524,37625.0,37595.0,0.00891489]
[1610073173095,5.15524,37625.0,37624.0,0.00891539]
[1610073173496,5.15524,37625.0,37596.0,0.00891532]
[1610073173698,5.15524,37625.0,37624.0,0.00891503]
[1610073173896,5.15524,37625.0,37572.0,0.10081]
[1610073174098,1.58454,37625.0,37572.0,0.10081]
[1610073174298,3.0137,37608.0,37563.0,0.09069049]
[1610073174498,1.5,37624.0,37573.0,0.00891575]
[1610073174697,4.3792,37611.0,37564.0,0.00891607]
[1610073174899,0.12081,37611.0,37564.0,0.00891607]
[1610073175099,3.0031,37609.0,37574.0,0.0089162]
[1610073175297,3.0031,37609.0,37565.0,0.0089167]
[1610073175499,0.12081,37611.0,37575.0,0.00891735]
[1610073175898,0.12081,37611.0,37563.0,0.12124]
[1610073175899,3.9243,37605.0,37566.0,0.00891721]
[1610073176098,3.9243,37605.0,37576.0,0.00891727]
[1610073176301,0.12081,37611.0,37567.0,0.00891761]
[1610073176500,0.12081,37611.0,37567.0,4.29141761]
[1610073176699,0.12081,37611.0,37577.0,0.00891796]
[1610073176899,0.12081,37611.0,37568.0,0.09962757]
[1610073177100,0.12081,37611.0,37578.0,0.00891697]
[1610073177502,0.12081,37611.0,37569.0,0.00891703]
[1610073177701,0.12081,37611.0,37563.0,0.12124]
[1610073177702,0.12081,37611.0,37579.0,0.00891598]
[1610073177901,0.12081,37611.0,37570.0,0.00891398]
[1610073178102,0.12081,37611.0,37579.0,0.13632608]
[1610073178300,0.12081,37611.0,37580.0,0.0089137]
[1610073179102,0.4348,37610.0,37580.0,0.0089137]
[1610073179301,0.4348,37610.0,37563.0,0.12124]
[1610073179302,0.4348,37610.0,37581.0,0.0089139]
[1610073179904,0.4348,37610.0,37564.0,0.00891635]
[1610073180104,0.4348,37610.0,37582.0,0.00891703]
[1610073180303,0.4348,37610.0,37579.0,0.13632608]
[1610073180503,0.4348,37610.0,37565.0,0.00891718]
[1610073180705,0.4348,37610.0,37580.0,0.00891729]
[1610073180902,0.4348,37610.0,37566.0,0.00891785]
[1610073181102,0.4348,37610.0,37581.0,0.00891814]
[1610073181505,0.4348,37610.0,37564.0,0.00891823]
[1610073181703,0.12081,37611.0,37582.0,0.00892059]
[1610073181904,4.3796,37601.0,37565.0,0.0089215]
[1610073182103,0.13632608,37566.0,37565.0,0.0089215]
[1610073182303,0.13632608,37566.0,37564.0,0.00892119]
[1610073182504,0.13632608,37566.0,37564.0,0.00867351]
[1610073182703,0.23910608,37566.0,37524.0,3.7233]
[1610073182904,0.23910608,37566.0,37565.0,0.00024823]
[1610073183103,0.23910608,37566.0,37546.0,0.12488]
[1610073183304,0.23910608,37566.0,37565.0,0.00024827]
[1610073183704,0.23910608,37566.0,37547.0,0.00892486]
[1610073183904,0.23910608,37566.0,37565.0,0.00024827]
[1610073184106,0.23910608,37566.0,37550.0,0.13632608]
[1610073184304,0.23910608,37566.0,37548.0,0.00024827]
[1610073184504,0.23910608,37566.0,37565.0,0.00024827]
[1610073184905,0.23910608,37566.0,37549.0,0.00024827]
[1610073185104,0.23910608,37566.0,37565.0,0.00024827]
[1610073185504,0.23910608,37566.0,37550.0,0.00024827]
[1610073185704,0.23910608,37566.0,37565.0,0.00024827]
[1610073185904,0.23910608,37566.0,37538.0,0.12964]
[1610073185905,0.23910608,37566.0,37551.0,0.00024827]
[1610073186105,0.13632608,37552.0,37551.0,0.00024827]
[1610073186304,0.13632608,37552.0,37549.0,0.00867549]
[1610073186504,0.13632608,37552.0,37551.0,0.00024829]
[1610073186706,0.13632608,37552.0,37550.0,0.00867605]
[1610073187105,0.13632608,37552.0,37551.0,0.00024831]
[1610073187304,0.13632608,37552.0,37551.0,0.00892673]
[1610073187504,0.13632608,37552.0,37529.0,0.00892764]
[1610073187904,0.13632608,37552.0,37551.0,0.00892786]
[1610073188104,0.13632608,37552.0,37530.0,0.00892998]
[1610073188305,0.13632608,37552.0,37551.0,0.00892977]
[1610073188706,0.13632608,37552.0,37528.0,0.09575]
[1610073188707,0.13632608,37552.0,37531.0,0.00892913]
[1610073188907,0.13632608,37552.0,37551.0,0.00893097]